{"text_format":"3","workbook":"xlsx","n_sheets":2,"sheets":["Integration Solution","Currency"],"not_rendered":{"external_links":8,"defined_names":312,"comments":2},"read":"whole","date_system":"1900"}

{"sheet":"Integration Solution","index":0,"n_rows":65,"n_cols":40,"rows_kept":65,"merged":[[2,2,2,7],[24,13,24,37],[25,5,25,7],[25,8,25,12],[25,13,25,17],[25,18,25,22],[25,23,25,27],[25,28,25,32],[25,33,25,37],[26,5,26,7],[27,0,34,0],[27,1,34,1],[27,2,28,2],[29,2,32,2],[33,2,34,2],[41,1,41,5],[43,1,47,1],[48,1,53,1],[54,1,58,1],[59,1,64,1]]}
[null,null,"Costing Schedule : Integration Solution"]
[]
[null,null,"VENDOR NAME"]
[]
[]
[null,null,"IMPORTANT NOTES"]
[null,null,"All cells highlighted in GREEN must be completed"]
[null,null,"Quoted prices MUST be in ZAR, EXCLUDING VAT and ESCALATIONS"]
[]
[null,null,"Integration Solution"]
[null,null,"Prices MUST be quoted based on the SCOPE provided"]
[null,null,"Select the currency from the CURRENCY drop-down list in COLUMN \"G\""]
[]
[null,null,"Capture the applicable Currency, ROE and ROE Published Date on the \"Currency sheet\". "]
[null,null,"The adjustments for prevailing rates and the basis for future price adjustments will be determined at time of contracting. ",{"$nulls":8},"     "]
[null,null,"Exchange rate variations may not be claimed for the local mark-up in the pricing structure"]
[]
[null,null,"NB: PROVIDE RESOURCES REQUIRED FOR SOLUTION IMPLEMENTATION USING TABLE 1"]
[]
[null,null,"PROVIDE PRICE ADJUSTMENT FORMULA TO BE USED FOR THE MAINTENANCE AND SUPPORT PERIOD OF THE CONTRACT (COLUMN AI)"]
[]
[null,null,"All Prices must be exclusive of VAT"]
[]
[]
[{"$nulls":13},"SOLUTION SUPPORT"]
[null,null," ",{"$nulls":5},"SOLUTION IMPLEMENTATION",{"$nulls":4},"YEAR 1",{"$nulls":4},"YEAR 2",{"$nulls":4},"YEAR 3",{"$nulls":4},"YEAR 4",{"$nulls":4},"YEAR 5"]
["Item Number",null,"Category","Description","Unit charge","CURRENCY",null,null,"Total Estimated Quantity","Unit Price in Nominated Currency","Unit Price in ZAR","Total [Nominated Currency]","Total in ZAR","Total Estimated Quantity","Unit Price in Nominated Currency","Unit Price in ZAR","Total [Nominated Currency]","Total in ZAR","Total Estimated Quantity","Unit Price in Nominated Currency","Unit Price in ZAR","Total [Nominated Currency]","Total in ZAR","Total Estimated Quantity","Unit Price in Nominated Currency","Unit Price in ZAR","Total [Nominated Currency]","Total in ZAR","Total Estimated Quantity","Unit Price in Nominated Currency","Unit Price in ZAR","Total [Nominated Currency]","Total in ZAR","Total Estimated Quantity","Unit Price in Nominated Currency","Unit Price in ZAR","Total [Nominated Currency]","Total in ZAR",null,"CONTRACT PRICE ADJUSTMENT"]
[1,"Integration Solution","Software","Integration Solution Licenses (200 users)","sum",{"$f":"IF(G28=\"\",\"\",IF(G28=\"ZAR\",\"Local\",\"Foreign\"))","v":"Local"},"ZAR",{"$f":"IF(F28=\"\",\"\",IF(F28=\"Foreign\",VLOOKUP(G28,Currency!$E$20:$F$33,2,FALSE),1))","v":{"v":1,"d":"1.00"}},1,0,{"$f":"J28*$H28","v":0},{"$f":"J28*$I28","v":0},{"$f":"K28*$I28","v":0},200,0,{"$f":"O28*$H28","v":0},{"$f":"O28*$N28","v":0},{"$f":"P28*$N28","v":0},200,0,{"$f":"T28*$H28","v":0},{"$f":"T28*$S28","v":0},{"$f":"U28*$S28","v":0},200,0,{"$f":"Y28*$H28","v":0},{"$f":"Y28*$X28","v":0},{"$f":"Z28*$X28","v":0},200,0,{"$f":"AD28*$H28","v":0},{"$f":"AD28*$AC28","v":0},{"$f":"AE28*$AC28","v":0},200,0,{"$f":"AI28*$H28","v":0},{"$f":"AI28*$AH28","v":0},{"$f":"AJ28*$AH28","v":0}]
[{"$nulls":3},"Solution Support (3rd line)","sum",{"$f":"IF(G29=\"\",\"\",IF(G29=\"ZAR\",\"Local\",\"Foreign\"))","v":"Local"},"ZAR",{"$f":"IF(F29=\"\",\"\",IF(F29=\"Foreign\",VLOOKUP(G29,Currency!$E$20:$F$33,2,FALSE),1))","v":{"v":1,"d":"1.00"}},1,0,{"$f":"J29*$H29","v":0},{"$f":"J29*$I29","v":0},{"$f":"K29*$I29","v":0},1,0,{"$f":"O29*$H29","v":0},{"$f":"O29*$N29","v":0},{"$f":"P29*$N29","v":0},1,0,{"$f":"T29*$H29","v":0},{"$f":"T29*$S29","v":0},{"$f":"U29*$S29","v":0},1,0,{"$f":"Y29*$H29","v":0},{"$f":"Y29*$X29","v":0},{"$f":"Z29*$X29","v":0},1,0,{"$f":"AD29*$H29","v":0},{"$f":"AD29*$AC29","v":0},{"$f":"AE29*$AC29","v":0},1,0,{"$f":"AI29*$H29","v":0},{"$f":"AI29*$AH29","v":0},{"$f":"AJ29*$AH29","v":0}]
[null,null,"Solution Implementation","Build and Configure","sum",{"$f":"IF(G30=\"\",\"\",IF(G30=\"ZAR\",\"Local\",\"Foreign\"))","v":"Local"},"ZAR",{"$f":"IF(F30=\"\",\"\",IF(F30=\"Foreign\",VLOOKUP(G30,Currency!$E$20:$F$33,2,FALSE),1))","v":{"v":1,"d":"1.00"}},1,{"$nulls":3},{"$f":"G48","v":0}]
[{"$nulls":3},"Integration","sum","Local","ZAR",{"$f":"IF(F31=\"\",\"\",IF(F31=\"Foreign\",VLOOKUP(G31,Currency!$E$20:$F$33,2,FALSE),1))","v":{"v":1,"d":"1.00"}},1,{"$nulls":3},{"$f":"G54","v":0}]
[{"$nulls":3},"Testing","sum","Local","ZAR",{"$f":"IF(F32=\"\",\"\",IF(F32=\"Foreign\",VLOOKUP(G32,Currency!$E$20:$F$33,2,FALSE),1))","v":{"v":1,"d":"1.00"}},1,{"$nulls":3},{"$f":"G59","v":0}]
[{"$nulls":3},"Deployment & Installation","sum","Local","ZAR",{"$f":"IF(F33=\"\",\"\",IF(F33=\"Foreign\",VLOOKUP(G33,Currency!$E$20:$F$33,2,FALSE),1))","v":{"v":1,"d":"1.00"}},1,{"$nulls":3},{"$f":"G65","v":0}]
[null,null,"Training","Technical and functional training (Internal support team knowdge transfer) - for 10 users ","sum","Local","ZAR",{"$f":"IF(F34=\"\",\"\",IF(F34=\"Foreign\",VLOOKUP(G34,Currency!$E$20:$F$33,2,FALSE),1))","v":{"v":1,"d":"1.00"}},10,0,{"$f":"J34*$H34","v":0},{"$f":"J34*$I34","v":0},{"$f":"K34*$I34","v":0}]
[{"$nulls":3},"Train the Trainer ( 10 business users)","sum",{"$f":"IF(G35=\"\",\"\",IF(G35=\"ZAR\",\"Local\",\"Foreign\"))","v":"Local"},"ZAR",{"$f":"IF(F35=\"\",\"\",IF(F35=\"Foreign\",VLOOKUP(G35,Currency!$E$20:$F$33,2,FALSE),1))","v":{"v":1,"d":"1.00"}},10,0,{"$f":"J35*$H35","v":0},{"$f":"J35*$I35","v":0},0]
[null,null,"Total ",{"$nulls":9},{"$f":"SUM(M28:M35)","v":0},{"$nulls":4},{"$f":"R28","v":0},{"$nulls":4},{"$f":"W28","v":0},{"$nulls":4},{"$f":"AB28","v":0},{"$nulls":4},{"$f":"AG28","v":0},{"$nulls":4},{"$f":"AL28","v":0}]
[]
[]
[null,null,"Grand Total",{"$nulls":9},{"$f":"SUM(M36,R36,W36,AB36,AG36,AL36)","v":0}]
[]
[]
[null,"TABLE 1: RESOURCES FOR IMPLEMENTATION"]
[null,"Stage","Skill","No. of Hours","Hourly Rate","Total"]
[null,"Build and Configure","Solution Architect",null,null,{"$f":"E44*D44","v":0}]
[null,null,"Technical Architect",0,0,0]
[null,null,"<Please specify>",0,0,0]
[null,null,"<Please specify>",0,0,0]
[null,null,"<Please specify>",0,0,0,{"$f":"SUM(F44:F48)","v":0}]
[null,"Integration","Implementation Specialists",0,0,0]
[null,null,"Technical Application Specialist",0,0,0]
[null,null,"Data Engineers",0,0,0]
[null,null,"<Please specify>",0,0,0]
[null,null,"<Please specify>",0,0,0]
[null,null,"<Please specify>",0,0,0,{"$f":"SUM(F49:F54)","v":0}]
[null,"Testing","Senior Tester",0,0,0]
[null,null,"Intermediate Tester",0,0,0]
[null,null,"<Please specify>",0,0,0]
[null,null,"<Please specify>",0,0,0]
[null,null,"<Please specify>",0,0,0,{"$f":"SUM(F55:F59)","v":0}]
[null,"Deployment & Installation","Implementation Specialist",0,0,0]
[null,null,"Technical Application Specialist",0,0,0]
[null,null,"Data Engineers",0,0,0]
[null,null,"<Please specify>",0,0,0]
[null,null,"<Please specify>",0,0,0]
[null,null,"<Please specify>",0,0,0,{"$f":"SUM(F60:F65)","v":0}]

{"sheet":"Currency","index":1,"n_rows":33,"n_cols":8,"rows_kept":33,"merged":[[1,1,1,5],[6,2,6,7],[7,1,9,1],[7,2,7,7],[7,15,7,20],[8,2,8,7],[9,2,9,7],[10,2,10,7],[11,2,11,7],[12,1,14,1],[12,2,12,7],[13,2,13,7],[14,2,14,7],[17,2,17,7]]}
[]
[null,{"$f":"[8]HSE!B3","v":"VENDOR NAME"}]
[]
[null,"EXCHANGE RATES FOR MULTIPLE CURRENCIES"]
[]
[null,"NOTES:"]
[null,1,"The table below needs to be completed if the Employer will be exposed to any currency fluctuation as stipulated in Secondary Clause X3.  For conversion of the foreign portions to Rand, please use the South African Reserve Bank's (SARB) exchange rate at 12:00 on the day of advertisement of the bid.  This is in terms of the Preferential Procurement Policy Framework Act (PPPFA) with which the Employer has to comply.\nNB: Tenderers must submit proof of the SARB rate(s) of exchange used  "]
[null,2,"The following URL (electronic route) is to be followed to access the relevant SARB rates on their web pages:\n"]
[null,null,"www.resbank.co.za"]
[null,null,"-  Select Research\n-  Then select Rates\n-  Click on \"Select historical exchange rates and other interest rates\"\n-  Clicking on the exchange rate in the following page opens the daily rates per currency and SA Rand"]
[null,3,"The Employer deals only in the currencies listed below unless other currencies are specifically approved for this tender.  Kindly notify the Employer of any currency that the tenderer intends to use, but is not stipulated in the table, to consider sanctioning such currency.  Sufficient time must be allowed for the assessment and to respond to such request.  The onus is on the tenderer to submit a bid with approved currencies"]
[null,4,"The format in which the exchange rate must be inserted in the table is:  1 (One) Foreign Currency = R Amount  (i.e. the Rand amount for one of each foreign currency applicable).  Exchange rates must be rounded to 4 decimals\n\nNB :  Only the USD/ZAR, GBP/ZAR and EUR/ZAR are published in this way on the SARB web pages above.  The Rand rate with the other currencies must be inverted (1/Foreign Currency Rate) in order to list it in the required format in the table below\n"]
[null,5,"All information in the table below must conform with all other equivalent information in the offer. "]
[null,null,"Payment in terms of Payment Method 2  is considered as a \"foreign payment\" although it will be effected in South African Rand. However, amounts for  \"F.O.R. Price-Goods supplied from Imported Items\", are NOT considered as \"foreign payments\""]
[null,null,"If more than one payment method apply for a currency, the Tenderer must request an additional row be inserted in the table in order to split the values and identify the relevant method.   "]
[]
[]
[null,null,"MULTIPLE CURRENCIES"]
[null,null,"No","Currency Description","Code","Exchange Rate Currency 1,00 =","Date Published","Source"]
[null,null,1,"Australian Dollar","AUD"]
[null,null,2,"Canadian Dollar","CAN"]
[null,null,3,"Swiss Franc","CHF"]
[null,null,4,"Danish Krone","DKK"]
[null,null,5,"European Currency","EUR"]
[null,null,6,"British Pound","GBP"]
[null,null,7,"Hong Kong Dollar","HKD"]
[null,null,8,"Japanese Yen","JPY"]
[null,null,9,"Norwegian Krone","NOK"]
[null,null,10,"New Zealand Dollar","NZD"]
[null,null,11,"Swedish Krone","SEK"]
[null,null,12,"Singapore Dollar","SGD"]
[null,null,13,"United States Dollar","USD"]
[null,null,14,"South African Rand","ZAR",{"v":1,"d":"R 1.000000"}]